{"text_format":"1","workbook":"xlsx","n_sheets":2,"sheets":["ChristmasCards","ThanksgivingCards"],"not_rendered":{"charts":0,"images":0,"macros":1,"external_links":0,"defined_names":1,"comments":0,"pivot_tables":0},"unopened":[],"bounds":{"document_bytes":16777216,"sheet_cells":100000,"rows_first":2000,"rows_last":500,"rows_between":2000,"halvings":0,"cell_chars":16384,"cell_head_chars":4096},"cells_cut":0,"cells_raw":0,"read":"whole","date_system":"1900"}

{"sheet":"ChristmasCards","index":0,"n_rows":21,"n_cols":14,"rows_kept":21,"cut":false,"hidden":false,"merged":[[0,3,0,13]]}
[null,"Active Year",2023]
["Last","Name","AddressL1","City","State","Zip","2023","2024","2025","2026","2027","2028","2029","2030"]
[{"$f":"MID(ChristmasTbl[[#This Row],[Name]],FIND(\"/\", SUBSTITUTE(ChristmasTbl[[#This Row],[Name]],\" \",\"/\", LEN(ChristmasTbl[[#This Row],[Name]])-LEN(SUBSTITUTE(ChristmasTbl[[#This Row],[Name]],\" \",\"\")))),100)","v":" Baker"},"Greg Baker","1713 E Broadway Ave","Maryville","TN",37804,"✔"]
[{"$f":"MID(ChristmasTbl[[#This Row],[Name]],FIND(\"/\", SUBSTITUTE(ChristmasTbl[[#This Row],[Name]],\" \",\"/\", LEN(ChristmasTbl[[#This Row],[Name]])-LEN(SUBSTITUTE(ChristmasTbl[[#This Row],[Name]],\" \",\"\")))),100)","v":" Carico"},"Tracy Carico","609 W Lamar Alexander Pkwy","Maryville","TN",37801,"✔"]
[{"$f":"MID(ChristmasTbl[[#This Row],[Name]],FIND(\"/\", SUBSTITUTE(ChristmasTbl[[#This Row],[Name]],\" \",\"/\", LEN(ChristmasTbl[[#This Row],[Name]])-LEN(SUBSTITUTE(ChristmasTbl[[#This Row],[Name]],\" \",\"\")))),100)","v":" CPA"},"Donna B Walker, CPA","402 S Washington St","Maryville","TN",37804,"✔"]
[{"$f":"MID(ChristmasTbl[[#This Row],[Name]],FIND(\"/\", SUBSTITUTE(ChristmasTbl[[#This Row],[Name]],\" \",\"/\", LEN(ChristmasTbl[[#This Row],[Name]])-LEN(SUBSTITUTE(ChristmasTbl[[#This Row],[Name]],\" \",\"\")))),100)","v":" Dunn"},"Melissa Dunn","9724 Kingston Pike Suite 204","Knoxville","TN",37922,"✔"]
[{"$f":"MID(ChristmasTbl[[#This Row],[Name]],FIND(\"/\", SUBSTITUTE(ChristmasTbl[[#This Row],[Name]],\" \",\"/\", LEN(ChristmasTbl[[#This Row],[Name]])-LEN(SUBSTITUTE(ChristmasTbl[[#This Row],[Name]],\" \",\"\")))),100)","v":" Heredia"},"Stephanie Heredia","5706 S MacDill Ave Ste 104","Tampa","FL",33611,"✔"]
[{"$f":"MID(ChristmasTbl[[#This Row],[Name]],FIND(\"/\", SUBSTITUTE(ChristmasTbl[[#This Row],[Name]],\" \",\"/\", LEN(ChristmasTbl[[#This Row],[Name]])-LEN(SUBSTITUTE(ChristmasTbl[[#This Row],[Name]],\" \",\"\")))),100)","v":" Hyde"},"Gary Hyde","415 S White St","Athens","TN",37371,"✔"]
[{"$f":"MID(ChristmasTbl[[#This Row],[Name]],FIND(\"/\", SUBSTITUTE(ChristmasTbl[[#This Row],[Name]],\" \",\"/\", LEN(ChristmasTbl[[#This Row],[Name]])-LEN(SUBSTITUTE(ChristmasTbl[[#This Row],[Name]],\" \",\"\")))),100)","v":" Johnston"},"Bill Johnston","169 Southern Lane","Tazewell","TN",37879,"✔"]
[{"$f":"MID(ChristmasTbl[[#This Row],[Name]],FIND(\"/\", SUBSTITUTE(ChristmasTbl[[#This Row],[Name]],\" \",\"/\", LEN(ChristmasTbl[[#This Row],[Name]])-LEN(SUBSTITUTE(ChristmasTbl[[#This Row],[Name]],\" \",\"\")))),100)","v":" Kautz"},"Evonne Kautz","12568 Kingston Pike","Knoxville","TN",37934,"✔"]
[{"$f":"MID(ChristmasTbl[[#This Row],[Name]],FIND(\"/\", SUBSTITUTE(ChristmasTbl[[#This Row],[Name]],\" \",\"/\", LEN(ChristmasTbl[[#This Row],[Name]])-LEN(SUBSTITUTE(ChristmasTbl[[#This Row],[Name]],\" \",\"\")))),100)","v":" Lambert"},"Charlie & Angela Lambert","PO Box 6775","Maryville","TN",37802,"✔"]
[{"$f":"MID(ChristmasTbl[[#This Row],[Name]],FIND(\"/\", SUBSTITUTE(ChristmasTbl[[#This Row],[Name]],\" \",\"/\", LEN(ChristmasTbl[[#This Row],[Name]])-LEN(SUBSTITUTE(ChristmasTbl[[#This Row],[Name]],\" \",\"\")))),100)","v":" Lermer"},"Michael & Barbara Lermer","5530 Turtle Crossing Loop","Tampa","FL",33625,"✔"]
[{"$f":"MID(ChristmasTbl[[#This Row],[Name]],FIND(\"/\", SUBSTITUTE(ChristmasTbl[[#This Row],[Name]],\" \",\"/\", LEN(ChristmasTbl[[#This Row],[Name]])-LEN(SUBSTITUTE(ChristmasTbl[[#This Row],[Name]],\" \",\"\")))),100)","v":" Miller"},"Marilyn Miller","123 West Washington Ave","Athens","TN",37363,"✔"]
[{"$f":"MID(ChristmasTbl[[#This Row],[Name]],FIND(\"/\", SUBSTITUTE(ChristmasTbl[[#This Row],[Name]],\" \",\"/\", LEN(ChristmasTbl[[#This Row],[Name]])-LEN(SUBSTITUTE(ChristmasTbl[[#This Row],[Name]],\" \",\"\")))),100)","v":" Pelton"},"Rhiannon Pelton","4412 Brainerd Road","Chattanooga","TN",37411,"✔"]
[{"$f":"MID(ChristmasTbl[[#This Row],[Name]],FIND(\"/\", SUBSTITUTE(ChristmasTbl[[#This Row],[Name]],\" \",\"/\", LEN(ChristmasTbl[[#This Row],[Name]])-LEN(SUBSTITUTE(ChristmasTbl[[#This Row],[Name]],\" \",\"\")))),100)","v":" Psyhos"},"Amy King Psyhos","4510 Hixson Pike Suite E","Hixson","TN",37343,"✔"]
[{"$f":"MID(ChristmasTbl[[#This Row],[Name]],FIND(\"/\", SUBSTITUTE(ChristmasTbl[[#This Row],[Name]],\" \",\"/\", LEN(ChristmasTbl[[#This Row],[Name]])-LEN(SUBSTITUTE(ChristmasTbl[[#This Row],[Name]],\" \",\"\")))),100)","v":" Scott"},"Allen A Scott","111 East Broadway Ave","Lenoir City","TN",37771,"✔"]
[{"$f":"MID(ChristmasTbl[[#This Row],[Name]],FIND(\"/\", SUBSTITUTE(ChristmasTbl[[#This Row],[Name]],\" \",\"/\", LEN(ChristmasTbl[[#This Row],[Name]])-LEN(SUBSTITUTE(ChristmasTbl[[#This Row],[Name]],\" \",\"\")))),100)","v":" Sharkey"},"Carol L Sharkey","106 Crickett Court","Saint Peters","MO",63376,"✔"]
[{"$f":"MID(ChristmasTbl[[#This Row],[Name]],FIND(\"/\", SUBSTITUTE(ChristmasTbl[[#This Row],[Name]],\" \",\"/\", LEN(ChristmasTbl[[#This Row],[Name]])-LEN(SUBSTITUTE(ChristmasTbl[[#This Row],[Name]],\" \",\"\")))),100)","v":" Sikes"},"Kassi Sikes"]
[{"$f":"MID(ChristmasTbl[[#This Row],[Name]],FIND(\"/\", SUBSTITUTE(ChristmasTbl[[#This Row],[Name]],\" \",\"/\", LEN(ChristmasTbl[[#This Row],[Name]])-LEN(SUBSTITUTE(ChristmasTbl[[#This Row],[Name]],\" \",\"\")))),100)","v":" Simonetta-Lee"},"Missy Simonetta-Lee","130 June Dr","Cocoa Beach","Fl",32931,"✔"]
[{"$f":"MID(ChristmasTbl[[#This Row],[Name]],FIND(\"/\", SUBSTITUTE(ChristmasTbl[[#This Row],[Name]],\" \",\"/\", LEN(ChristmasTbl[[#This Row],[Name]])-LEN(SUBSTITUTE(ChristmasTbl[[#This Row],[Name]],\" \",\"\")))),100)","v":" Stark"},"Erica Stark","7003 Pearl Rd #17","Middleburg Hts","OH",44130,"✔"]
[{"$f":"MID(ChristmasTbl[[#This Row],[Name]],FIND(\"/\", SUBSTITUTE(ChristmasTbl[[#This Row],[Name]],\" \",\"/\", LEN(ChristmasTbl[[#This Row],[Name]])-LEN(SUBSTITUTE(ChristmasTbl[[#This Row],[Name]],\" \",\"\")))),100)","v":" Walston"},"J Wayne Walston","3882 Jill St NE","Cleveland","TN",37312,"✔"]

{"sheet":"ThanksgivingCards","index":1,"n_rows":22,"n_cols":14,"rows_kept":22,"cut":false,"hidden":false,"merged":[[0,3,0,13]]}
[null,"Active Year",2024]
["Last Name","Name","AddressL1","City","State","Zip","2023","2024","2025","2026","2027","2028","2029","2030"]
[{"$f":"MID(ThanksgivingTbl[[#This Row],[Name]],FIND(\"/\", SUBSTITUTE(ThanksgivingTbl[[#This Row],[Name]],\" \",\"/\", LEN(ThanksgivingTbl[[#This Row],[Name]])-LEN(SUBSTITUTE(ThanksgivingTbl[[#This Row],[Name]],\" \",\"\")))),100)","v":" Baker"},"Greg Baker","1713 E Broadway Ave","Maryville","TN",37804]
[{"$f":"MID(ThanksgivingTbl[[#This Row],[Name]],FIND(\"/\", SUBSTITUTE(ThanksgivingTbl[[#This Row],[Name]],\" \",\"/\", LEN(ThanksgivingTbl[[#This Row],[Name]])-LEN(SUBSTITUTE(ThanksgivingTbl[[#This Row],[Name]],\" \",\"\")))),100)","v":" Carico"},"Tracy Carico","609 W Lamar Alexander Pkwy","Maryville","TN",37801]
[{"$f":"MID(ThanksgivingTbl[[#This Row],[Name]],FIND(\"/\", SUBSTITUTE(ThanksgivingTbl[[#This Row],[Name]],\" \",\"/\", LEN(ThanksgivingTbl[[#This Row],[Name]])-LEN(SUBSTITUTE(ThanksgivingTbl[[#This Row],[Name]],\" \",\"\")))),100)","v":" Dunn"},"Melissa Dunn","9724 Kingston Pike Suite 204","Knoxville","TN",37922,null,"✔"]
[{"$f":"MID(ThanksgivingTbl[[#This Row],[Name]],FIND(\"/\", SUBSTITUTE(ThanksgivingTbl[[#This Row],[Name]],\" \",\"/\", LEN(ThanksgivingTbl[[#This Row],[Name]])-LEN(SUBSTITUTE(ThanksgivingTbl[[#This Row],[Name]],\" \",\"\")))),100)","v":" Heredia"},"Stephanie Heredia","5706 S MacDill Ave Ste 104","Tampa","FL",33611,null,"✔"]
[{"$f":"MID(ThanksgivingTbl[[#This Row],[Name]],FIND(\"/\", SUBSTITUTE(ThanksgivingTbl[[#This Row],[Name]],\" \",\"/\", LEN(ThanksgivingTbl[[#This Row],[Name]])-LEN(SUBSTITUTE(ThanksgivingTbl[[#This Row],[Name]],\" \",\"\")))),100)","v":" Hyde"},"Gary Hyde","415 S White St","Athens","TN",37371]
[{"$f":"MID(ThanksgivingTbl[[#This Row],[Name]],FIND(\"/\", SUBSTITUTE(ThanksgivingTbl[[#This Row],[Name]],\" \",\"/\", LEN(ThanksgivingTbl[[#This Row],[Name]])-LEN(SUBSTITUTE(ThanksgivingTbl[[#This Row],[Name]],\" \",\"\")))),100)","v":" Johnston"},"Bill Johnston","169 Southern Lane","Tazewell","TN",37879,null,"✔"]
[{"$f":"MID(ThanksgivingTbl[[#This Row],[Name]],FIND(\"/\", SUBSTITUTE(ThanksgivingTbl[[#This Row],[Name]],\" \",\"/\", LEN(ThanksgivingTbl[[#This Row],[Name]])-LEN(SUBSTITUTE(ThanksgivingTbl[[#This Row],[Name]],\" \",\"\")))),100)","v":" Kautz"},"Evonne Kautz","12568 Kingston Pike","Knoxville","TN",37934,null,"✔"]
[{"$f":"MID(ThanksgivingTbl[[#This Row],[Name]],FIND(\"/\", SUBSTITUTE(ThanksgivingTbl[[#This Row],[Name]],\" \",\"/\", LEN(ThanksgivingTbl[[#This Row],[Name]])-LEN(SUBSTITUTE(ThanksgivingTbl[[#This Row],[Name]],\" \",\"\")))),100)","v":" Lambert"},"Charlie & Angela Lambert","PO Box 6775","Maryville","TN",37802,null,"✔"]
[{"$f":"MID(ThanksgivingTbl[[#This Row],[Name]],FIND(\"/\", SUBSTITUTE(ThanksgivingTbl[[#This Row],[Name]],\" \",\"/\", LEN(ThanksgivingTbl[[#This Row],[Name]])-LEN(SUBSTITUTE(ThanksgivingTbl[[#This Row],[Name]],\" \",\"\")))),100)","v":" Miller"},"Marilyn Miller","123 West Washington Ave","Athens","TN",37363,null,"✔"]
[{"$f":"MID(ThanksgivingTbl[[#This Row],[Name]],FIND(\"/\", SUBSTITUTE(ThanksgivingTbl[[#This Row],[Name]],\" \",\"/\", LEN(ThanksgivingTbl[[#This Row],[Name]])-LEN(SUBSTITUTE(ThanksgivingTbl[[#This Row],[Name]],\" \",\"\")))),100)","v":" Pelton"},"Rhiannon Pelton","4412 Brainerd Road","Chattanooga","TN",37411]
[{"$f":"MID(ThanksgivingTbl[[#This Row],[Name]],FIND(\"/\", SUBSTITUTE(ThanksgivingTbl[[#This Row],[Name]],\" \",\"/\", LEN(ThanksgivingTbl[[#This Row],[Name]])-LEN(SUBSTITUTE(ThanksgivingTbl[[#This Row],[Name]],\" \",\"\")))),100)","v":" Psyhos"},"Amy King Psyhos","4510 Hixson Pike Suite E","Hixson","TN",37343]
[{"$f":"MID(ThanksgivingTbl[[#This Row],[Name]],FIND(\"/\", SUBSTITUTE(ThanksgivingTbl[[#This Row],[Name]],\" \",\"/\", LEN(ThanksgivingTbl[[#This Row],[Name]])-LEN(SUBSTITUTE(ThanksgivingTbl[[#This Row],[Name]],\" \",\"\")))),100)","v":" Sharkey"},"Carol L Sharkey","106 Crickett Court","Saint Peters","MO",63376,null,"✔"]
[{"$f":"MID(ThanksgivingTbl[[#This Row],[Name]],FIND(\"/\", SUBSTITUTE(ThanksgivingTbl[[#This Row],[Name]],\" \",\"/\", LEN(ThanksgivingTbl[[#This Row],[Name]])-LEN(SUBSTITUTE(ThanksgivingTbl[[#This Row],[Name]],\" \",\"\")))),100)","v":" Sikes"},"Kassi Sikes","5327 W. Hillsdale Ave","Visalia","CA",93291,null,"✔"]
[{"$f":"MID(ThanksgivingTbl[[#This Row],[Name]],FIND(\"/\", SUBSTITUTE(ThanksgivingTbl[[#This Row],[Name]],\" \",\"/\", LEN(ThanksgivingTbl[[#This Row],[Name]])-LEN(SUBSTITUTE(ThanksgivingTbl[[#This Row],[Name]],\" \",\"\")))),100)","v":" Simonetta-Lee"},"Missy Simonetta-Lee","130 June Dr","Cocoa Beach","Fl",32931,null,"✔"]
[{"$f":"MID(ThanksgivingTbl[[#This Row],[Name]],FIND(\"/\", SUBSTITUTE(ThanksgivingTbl[[#This Row],[Name]],\" \",\"/\", LEN(ThanksgivingTbl[[#This Row],[Name]])-LEN(SUBSTITUTE(ThanksgivingTbl[[#This Row],[Name]],\" \",\"\")))),100)","v":" Stark"},"Erica Stark","7003 Pearl Rd #17","Middleburg Hts","OH",44130,null,"✔"]
[{"$f":"MID(ThanksgivingTbl[[#This Row],[Name]],FIND(\"/\", SUBSTITUTE(ThanksgivingTbl[[#This Row],[Name]],\" \",\"/\", LEN(ThanksgivingTbl[[#This Row],[Name]])-LEN(SUBSTITUTE(ThanksgivingTbl[[#This Row],[Name]],\" \",\"\")))),100)","v":" Walker"},"Donna B Walker","402 S Washington St","Maryville","TN",37804]
[{"$f":"MID(ThanksgivingTbl[[#This Row],[Name]],FIND(\"/\", SUBSTITUTE(ThanksgivingTbl[[#This Row],[Name]],\" \",\"/\", LEN(ThanksgivingTbl[[#This Row],[Name]])-LEN(SUBSTITUTE(ThanksgivingTbl[[#This Row],[Name]],\" \",\"\")))),100)","v":" Walston"},"J Wayne Walston","3882 Jill St NE","Cleveland","TN",37312,null,"✔"]
[{"$f":"MID(ThanksgivingTbl[[#This Row],[Name]],FIND(\"/\", SUBSTITUTE(ThanksgivingTbl[[#This Row],[Name]],\" \",\"/\", LEN(ThanksgivingTbl[[#This Row],[Name]])-LEN(SUBSTITUTE(ThanksgivingTbl[[#This Row],[Name]],\" \",\"\")))),100)","v":" Stone"},"David & Suzanne Stone","25115 Avenue Stanford, Suite 107","Valencia","CA",91355,null,"✔"]
[{"$f":"MID(ThanksgivingTbl[[#This Row],[Name]],FIND(\"/\", SUBSTITUTE(ThanksgivingTbl[[#This Row],[Name]],\" \",\"/\", LEN(ThanksgivingTbl[[#This Row],[Name]])-LEN(SUBSTITUTE(ThanksgivingTbl[[#This Row],[Name]],\" \",\"\")))),100)","v":" Brugman"},"Lisa Brugman","1506 Hacienda Rd","La Habra Heights","CA","90631-8105",null,"✔"]
[{"$f":"MID(ThanksgivingTbl[[#This Row],[Name]],FIND(\"/\", SUBSTITUTE(ThanksgivingTbl[[#This Row],[Name]],\" \",\"/\", LEN(ThanksgivingTbl[[#This Row],[Name]])-LEN(SUBSTITUTE(ThanksgivingTbl[[#This Row],[Name]],\" \",\"\")))),100)","v":" Heyer"},"Ralf F Heyer","2655 S Le Jeune Road, Ste PH1-E","Coral Gables","FL",33134]